bitfinex/quotes_ETHUSD_20241024
["timestamp","ask_amount","ask_price","bid_price","bid_amount"]
[1729742477923,7.07948,2542.6,2542.0,0.09280213]
[1729742477924,3.53989,2542.5,2542.0,0.09280213]
[1729742478796,3.54005,2542.4,2542.0,0.09280213]
[1729742479134,3.54005,2542.4,2542.0,0.08785069]
[1729742479827,7.07979,2542.5,2542.0,0.08785069]
[1729742479998,7.07983,2542.5,2542.0,0.08785069]
[1729742480190,3.53989,2542.5,2542.0,0.08785069]
[1729742480729,3.54003,2542.4,2542.0,0.08785069]
[1729742481126,3.53989,2542.5,2542.0,0.08785069]
[1729742481589,3.53997,2542.4,2542.0,0.08785069]
[1729742482199,7.08027,2542.3,2542.0,0.08785069]
[1729742482433,3.5401,2542.3,2542.0,0.08785069]
[1729742482738,7.0798,2542.5,2542.0,0.08785069]
[1729742483310,3.54001,2542.4,2542.0,0.08785069]
[1729742483603,7.07984,2542.5,2542.0,0.08785069]
[1729742484223,3.54007,2542.4,2542.0,0.08785069]
[1729742485045,3.5403,2542.2,2542.0,0.08785069]
[1729742485337,3.54014,2542.3,2541.8,0.07867608]
[1729742485536,3.54014,2542.3,2542.1,0.08785069]
[1729742485736,3.54014,2542.3,2541.8,0.07867608]
[1729742485914,3.54014,2542.3,2542.2,0.08785069]
[1729742485915,7.08031,2542.3,2542.2,0.08785069]
[1729742486115,3.54028,2542.2,2541.9,0.7539]
[1729742486305,3.54028,2542.2,2542.0,0.08785069]
[1729742486501,3.54014,2542.3,2542.0,0.08785069]
[1729742486842,3.5399,2542.5,2542.0,0.08785069]
[1729742487140,3.54,2542.4,2541.9,4.24447]
[1729742487346,3.54,2542.4,2541.9,4.668917]
[1729742487647,3.5399,2542.5,2542.0,3.62835069]
[1729742487951,6.53961,2542.7,2542.1,3.61896672]
[1729742487952,7.07928,2542.7,2542.1,3.61896672]
[1729742488243,3.53961,2542.7,2542.1,3.61896672]
[1729742488412,3.53961,2542.7,2542.2,0.08822229]
[1729742488620,3.53935,2542.9,2542.3,3.61873354]
[1729742488831,3.53935,2542.9,2542.4,3.6185865]
[1729742489146,3.53935,2542.9,2542.5,0.08822229]
[1729742489604,7.07871,2542.9,2542.5,0.08822229]
[1729742489801,3.5394,2542.8,2542.5,0.08822229]
[1729742490044,3.5394,2542.8,2542.2,7.0803]
[1729742490219,3.5394,2542.8,2542.3,4.294]
[1729742490418,3.5394,2542.8,2542.3,4.38222229]
[1729742491644,3.5394,2542.8,2542.3,0.84212229]
[1729742491828,3.5394,2542.8,2542.3,4.38219229]
[1729742492443,3.53958,2542.7,2542.3,0.84212229]
[1729742492609,3.5394,2542.8,2542.3,4.38218229]
[1729742492804,3.5394,2542.8,2542.3,5.24531752]
[1729742493220,3.5394,2542.8,2542.4,0.07865774]
[1729742493641,3.53921,2543.0,2542.4,3.61860774]
[1729742493948,3.53899,2543.1,2542.6,3.53968]
[1729742494119,3.53899,2543.1,2542.6,3.61833023]
[1729742494322,3.53899,2543.1,2542.6,4.41837048]
[1729742494501,3.53899,2543.1,2542.7,0.08822229]
[1729742494908,4.3483,2542.8,2542.7,0.08822229]
[1729742495106,4.3483,2542.8,2542.0,0.7539]
[1729742495107,3.8089,2542.8,2542.0,0.7539]
[1729742495331,7.08001,2542.4,2542.1,0.08498146]
[1729742495534,3.8089,2542.8,2542.1,0.08498146]
[1729742495535,3.53976,2542.6,2542.1,0.08498146]
[1729742495719,3.53976,2542.6,2542.1,0.52291961]
[1729742495923,3.53976,2542.6,2542.1,0.60158475]
[1729742496138,3.53976,2542.6,2542.1,4.14195475]
[1729742496335,3.53976,2542.6,2542.1,0.60158475]
[1729742496537,7.07956,2542.6,2542.1,0.52291961]
[1729742497043,3.53976,2542.6,2542.1,0.52291961]
[1729742497238,3.53982,2542.5,2542.1,0.52291961]
[1729742497411,3.53982,2542.5,2542.1,0.08498146]
[1729742497610,3.53976,2542.6,2542.1,0.08498146]
[1729742497811,3.53982,2542.5,2542.1,0.08498146]
[1729742498045,3.53976,2542.6,2542.1,0.08498146]
[1729742498261,3.53997,2542.4,2542.1,0.08498146]
[1729742499280,3.53976,2542.6,2542.1,0.08498146]
[1729742499441,3.53982,2542.5,2542.1,0.08498146]
[1729742500145,3.53964,2542.7,2542.2,0.86006388]
[1729742500346,3.53964,2542.7,2542.2,5.20279841]
[1729742500682,3.53964,2542.7,2542.3,0.08517609]
[1729742500683,3.53975,2542.6,2542.3,0.08517609]
[1729742500894,3.53975,2542.6,2542.2,1.58398453]
[1729742501073,3.53975,2542.6,2542.3,0.08517609]
[1729742501241,3.53975,2542.6,2542.2,1.58398453]
[1729742501442,3.53975,2542.6,2542.3,0.08517609]
[1729742501643,4.34976,2542.4,2541.5,3.54114]
[1729742501888,3.54066,2541.9,2541.4,1.3971616]
[1729742502176,3.54066,2541.9,2541.5,0.08517609]
[1729742502691,3.54065,2542.0,2541.5,0.08517609]
[1729742505258,4.34984,2542.4,2541.6,0.7814]
[1729742505464,3.53984,2542.5,2541.9,3.54063]
[1729742505671,7.08001,2542.4,2542.0,0.86710701]
[1729742505987,3.53997,2542.4,2542.0,0.86710701]
[1729742506657,4.34956,2542.6,2542.0,4.40761701]
[1729742506658,3.53976,2542.6,2542.0,4.40761701]
[1729742506862,3.53976,2542.6,2542.0,5.20244171]
[1729742507546,3.53949,2542.8,2542.2,0.7814]
[1729742507750,0.8098,2543.1,2541.6,0.7814]
[1729742507751,0.8098,2542.4,2541.6,0.7814]
[1729742507953,7.08067,2542.2,2541.7,0.08261141]
[1729742508183,3.54032,2542.2,2541.6,4.32244]
[1729742508691,3.54032,2542.2,2541.7,0.08261141]
[1729742508892,3.54032,2542.2,2541.7,3.70212714]
[1729742509052,4.34983,2542.4,2541.8,3.54067]
[1729742509252,7.88991,2542.4,2541.8,3.54067]
[1729742509453,7.88991,2542.4,2541.9,0.08261141]
[1729742510383,3.54003,2542.4,2541.9,0.08261141]
[1729742510685,3.54003,2542.4,2542.0,0.7814]
[1729742511052,3.54003,2542.4,2542.1,0.08261141]
[1729742511253,7.08008,2542.4,2542.1,0.08261141]
[1729742511754,3.54003,2542.4,2542.1,0.08261141]
[1729742511954,7.08007,2542.4,2542.1,0.08261141]
[1729742512561,3.54012,2542.3,2542.1,0.08261141]
[1729742513388,3.54003,2542.4,2542.1,0.08261141]
[1729742513760,3.53984,2542.5,2542.1,0.08261141]
[1729742513976,6.54024,2542.2,2542.1,0.08261141]
[1729742514180,7.33554,2542.2,2542.1,0.08261141]
[1729742514389,3.54102,2541.7,2541.0,4.29547]
[1729742514685,3.54102,2541.7,2541.1,3.61886358]
[1729742514857,3.54102,2541.7,2541.1,4.41129694]
[1729742515478,3.54102,2541.7,2541.1,4.41128694]
[1729742515652,7.08206,2541.7,2541.2,0.24615597]
[1729742515854,3.0,2542.1,2541.1,0.79243336]
[1729742516050,3.54051,2542.0,2541.3,3.54136]
[1729742516454,3.54051,2542.0,2541.4,0.07711358]
[1729742516455,3.54083,2541.8,2541.4,0.07711358]
[1729742516875,3.54051,2542.0,2541.6,0.7537]
[1729742517055,3.54051,2542.0,2541.7,0.07760032]
[1729742517966,5.043296,2542.4,2541.7,3.61853032]
[1729742518159,4.33534,2542.4,2541.7,3.61853032]
[1729742518594,3.54024,2542.2,2541.7,3.61853032]
[1729742518897,4.33534,2542.4,2541.7,3.61853032]
[1729742518898,3.54004,2542.4,2541.7,3.61846032]
[1729742519099,3.54004,2542.4,2541.8,3.54075]
[1729742519298,3.54003,2542.4,2541.8,3.54075]
[1729742519457,3.54003,2542.4,2541.9,0.07760032]
[1729742520911,3.0,2542.5,2542.0,3.54051]
[1729742521063,3.53991,2542.5,2542.1,0.7537]
[1729742521261,4.33505,2542.6,2542.1,0.7537]
[1729742521262,3.53999,2542.4,2542.2,0.07760032]
[1729742523774,7.87487,2542.6,2542.2,0.07760032]
[1729742523981,3.53996,2542.4,2542.2,0.07760032]
[1729742528613,3.53975,2542.6,2542.2,0.07760032]
[1729742528905,3.53982,2542.5,2542.2,0.07760032]
[1729742529602,3.53975,2542.6,2542.2,0.07760032]
[1729742529976,3.53986,2542.5,2542.2,0.07760032]
[1729742530316,3.53975,2542.6,2542.2,0.07760032]
[1729742530467,7.07954,2542.6,2542.2,0.07760032]
[1729742531506,3.53985,2542.5,2542.2,0.07760032]
[1729742531680,3.53975,2542.6,2542.2,0.07760032]
[1729742532181,10.07902,2542.8,2542.2,3.61773032]
[1729742532382,10.07902,2542.8,2542.2,4.40890335]
[1729742532578,10.07898,2542.8,2542.2,4.40890335]
[1729742532798,6.53948,2542.8,2542.3,3.54008]
[1729742532997,3.53954,2542.7,2542.2,0.07760032]
[1729742533192,3.53954,2542.7,2542.4,0.07749408]
[1729742533396,3.53954,2542.7,2542.2,3.54023]
[1729742533572,3.53954,2542.7,2542.5,0.07749408]
[1729742533778,3.53954,2542.7,2542.2,3.54023]
[1729742534274,3.53954,2542.7,2542.3,0.07749408]
[1729742534474,3.53954,2542.7,2542.2,3.54023]
[1729742534774,3.53954,2542.7,2542.3,0.07749408]
[1729742535103,3.53954,2542.7,2542.2,3.54023]
[1729742535301,3.53954,2542.7,2542.3,0.07749408]
[1729742535473,3.53954,2542.7,2542.2,3.54023]
[1729742535674,3.53954,2542.7,2542.3,0.07749408]
[1729742535875,3.53954,2542.7,2542.2,3.54023]
[1729742536103,3.53954,2542.7,2542.3,0.07749408]
[1729742536415,3.53954,2542.7,2542.2,3.54023]
[1729742536630,3.53954,2542.7,2542.4,0.07749408]
[1729742536820,3.53954,2542.7,2542.2,3.54023]
[1729742537019,3.53954,2542.7,2542.5,0.07749408]
[1729742537326,3.53954,2542.7,2542.6,0.07749408]
[1729742537527,3.53954,2542.7,2542.2,3.54023]
[1729742537730,3.53954,2542.7,2542.3,0.07749408]
[1729742537914,3.53954,2542.7,2542.2,3.54023]
[1729742538117,7.07917,2542.7,2542.3,0.07749408]
[1729742538323,3.53954,2542.7,2542.2,4.323666]
[1729742538541,3.53954,2542.7,2542.3,0.07749408]
[1729742538699,3.53954,2542.7,2542.2,4.323666]
[1729742538901,3.53954,2542.7,2542.3,0.07749408]
[1729742539229,3.53954,2542.7,2542.2,4.323666]
[1729742539407,3.53954,2542.7,2542.4,0.07732595]
[1729742539612,3.53954,2542.7,2542.2,4.323666]
[1729742539810,7.07917,2542.7,2542.5,0.07732595]
[1729742540014,7.07917,2542.7,2542.2,3.54023]
[1729742540198,3.53954,2542.7,2542.6,0.07732595]
[1729742540392,3.53954,2542.7,2542.2,4.323666]
[1729742540393,7.07915,2542.7,2542.2,3.54023]
[1729742540710,3.53954,2542.7,2542.2,3.54023]
[1729742540926,3.53954,2542.7,2542.3,0.07732595]
[1729742541235,3.53954,2542.7,2542.2,3.54023]
[1729742541438,3.53954,2542.7,2542.4,0.07732595]
[1729742541614,3.53954,2542.7,2542.2,3.54023]
[1729742541813,3.53954,2542.7,2542.5,0.07732595]
[1729742542009,3.53969,2542.6,2542.2,3.54023]
[1729742544454,3.53969,2542.6,2542.1,4.29407]
[1729742545312,3.53969,2542.6,2542.1,5.07852]
[1729742547342,3.53954,2542.7,2542.2,3.54019]
[1729742547741,6.53948,2542.8,2542.2,3.54019]
[1729742547943,0.8228,2543.2,2542.4,0.8157]
[1729742548145,3.53901,2543.1,2542.6,0.8157]
[1729742548465,3.53901,2543.1,2542.6,4.3553]
[1729742548958,3.53915,2543.0,2542.6,0.8157]
[1729742549376,3.53901,2543.1,2542.6,1.251252]
[1729742549519,3.53913,2543.0,2542.6,1.251252]
[1729742553410,3.53901,2543.1,2542.2,0.8157]
[1729742553411,3.53954,2542.7,2542.2,0.8157]
[1729742553616,3.53954,2542.7,2542.2,4.35592]
[1729742553850,3.53942,2542.8,2542.3,4.35571]
[1729742555753,3.53955,2542.7,2542.3,0.8157]
[1729742556653,3.53942,2542.8,2542.3,0.8157]
[1729742556845,3.53942,2542.8,2542.4,0.86651523]
[1729742557057,3.53922,2543.0,2542.4,0.86651523]
[1729742557058,3.53916,2543.0,2542.4,0.86651523]
[1729742557267,3.53916,2543.0,2542.5,4.3555]
[1729742557762,3.53916,2543.0,2542.0,3.55028183]
[1729742557763,3.53954,2542.7,2542.6,0.07690123]
[1729742557918,3.53954,2542.7,2541.8,7.62049183]
[1729742557919,3.54029,2542.2,2541.8,0.8157]
[1729742558334,3.54023,2542.3,2541.8,1.605467]
[1729742558563,3.54019,2542.3,2541.8,1.605467]
[1729742558852,3.54019,2542.3,2541.8,5.146247]
[1729742559167,3.54004,2542.4,2541.9,3.54065]
[1729742559466,3.54004,2542.4,2541.9,7.08123]
[1729742559667,3.54004,2542.4,2542.0,0.8686697]
[1729742560031,4.36252,2542.6,2542.0,4.4091797]
[1729742560249,3.53982,2542.5,2542.1,0.8132]
[1729742560549,4.36252,2542.6,2542.1,0.8132]
[1729742560730,3.53972,2542.6,2542.1,0.8132]
[1729742560931,3.53972,2542.6,2542.1,4.87581397]
[1729742561571,0.7978,2542.8,2542.1,4.87581397]
[1729742561572,7.87682,2542.8,2542.1,4.87581397]
[1729742561868,3.53931,2542.9,2542.4,0.8132]
[1729742562075,3.53931,2542.9,2542.4,4.35316]
[1729742562369,3.53931,2542.9,2542.5,0.435316]
[1729742563328,3.53941,2542.8,2542.5,0.435316]
[1729742564263,3.53989,2542.5,2542.1,0.52224397]
[1729742564477,3.53969,2542.6,2542.1,4.06259397]
[1729742564649,3.53962,2542.7,2542.3,0.8132]
[1729742565345,3.53969,2542.6,2542.3,0.8132]
[1729742565541,3.53962,2542.7,2542.3,0.8132]
[1729742565762,7.07927,2542.7,2542.3,0.8132]
[1729742565959,4.3372,2542.8,2542.3,0.8132]
[1729742566156,3.5394,2542.8,2542.3,4.8408644]
[1729742568779,3.53936,2542.9,2542.4,3.53994]
[1729742569355,6.53907,2543.1,2542.5,4.35294]
[1729742569664,10.07815,2543.1,2542.5,4.35294]
[1729742570069,3.53915,2543.0,2542.5,4.35294]
[1729742570410,3.53928,2542.9,2542.5,1.65124544]
[1729742570746,3.53928,2542.9,2542.5,5.19104544]
[1729742570947,3.53913,2543.0,2542.5,5.19104544]
[1729742571142,3.53913,2543.0,2542.5,8.73078544]
[1729742571340,3.53913,2543.0,2542.5,5.19098544]
[1729742571589,3.53913,2543.0,2542.6,0.51909854]
[1729742571784,3.53913,2543.0,2542.6,0.5854045]
[1729742572141,7.07833,2543.0,2542.6,0.5854045]
[1729742572346,7.07833,2543.0,2542.6,0.06630596]
[1729742572559,3.53913,2543.0,2542.6,0.06630596]
[1729742573355,3.53913,2543.0,2542.6,3.60597596]
[1729742573561,3.53893,2543.2,2542.7,4.33683]
[1729742573989,3.53893,2543.2,2542.8,0.06608507]
[1729742574285,3.53893,2543.2,2542.8,0.44029151]
[1729742574449,3.53893,2543.2,2542.9,0.06608507]
[1729742575046,10.90898378,2543.4,2542.9,0.06608507]
[1729742575271,7.37030378,2543.4,2542.9,0.06608507]
[1729742575446,7.37030378,2543.4,2542.9,3.60534507]
[1729742575647,6.58490378,2543.4,2542.9,3.60534507]
[1729742575848,3.58490378,2543.4,2543.0,0.7974]
[1729742576249,7.12360378,2543.4,2543.0,0.7974]
[1729742576449,3.58490378,2543.4,2543.1,0.06608507]
[1729742576685,7.12355378,2543.4,2543.1,0.06608507]
[1729742576979,3.58490378,2543.4,2543.1,0.06608507]
[1729742577773,7.12357378,2543.4,2543.1,0.06608507]
[1729742577974,3.58490378,2543.4,2543.1,0.06608507]
[1729742578172,0.04632378,2543.4,2543.1,0.06608507]
[1729742578376,0.04632378,2543.4,2543.1,0.58221024]
[1729742578755,3.58490378,2543.4,2543.1,0.58221024]
[1729742579284,0.04632378,2543.4,2543.1,0.58221024]
[1729742580663,3.58490378,2543.4,2543.1,0.58221024]
[1729742580865,3.58490378,2543.4,2543.1,0.06608507]
[1729742581590,3.5388,2543.3,2543.0,0.7974]
[1729742581807,3.5388,2543.3,2543.2,0.06571403]
[1729742581967,3.5388,2543.3,2543.0,0.7974]
[1729742582167,3.53879,2543.3,2543.2,0.06571403]
[1729742582380,3.53879,2543.3,2543.0,0.7974]
[1729742582610,3.53879,2543.3,2543.2,0.06571403]
[1729742582771,3.53879,2543.3,2543.0,0.7974]
[1729742583105,0.83172378,2543.4,2543.0,0.7974]
[1729742583407,0.83172378,2543.4,2543.1,0.06571403]
[1729742583408,4.32404,2543.4,2543.1,0.06571403]
[1729742583567,0.7854,2543.4,2543.1,0.06571403]
[1729742583764,3.53852,2543.5,2543.1,0.06571403]
[1729742583961,3.53859,2543.4,2543.1,0.06571403]
[1729742586110,3.53843,2543.5,2543.1,0.06571403]
[1729742586321,7.07761,2543.3,2543.1,0.06571403]
[1729742586609,3.53858,2543.4,2542.9,3.53926]
[1729742586790,3.53858,2543.4,2543.2,0.06571403]
[1729742586997,3.53858,2543.4,2542.9,3.53926]
[1729742587172,3.53858,2543.4,2543.3,0.06571403]
[1729742587373,3.53858,2543.4,2542.9,3.53926]
[1729742587673,7.86208,2543.6,2543.3,0.06571403]
[1729742587987,4.3237,2543.6,2543.1,4.33637]
[1729742588185,4.3237,2543.6,2543.4,0.06571403]
[1729742588389,3.53843,2543.5,2543.1,0.7974]
[1729742588900,4.3237,2543.6,2543.1,0.7974]
[1729742589078,7.86208,2543.6,2543.1,0.7974]
[1729742589283,4.3237,2543.6,2543.1,0.7974]
[1729742589609,3.53845,2543.5,2543.1,0.7974]
[1729742589789,3.5383,2543.6,2543.1,4.8487603]
[1729742590123,3.5383,2543.6,2543.1,4.8487003]
[1729742591085,3.5383,2543.6,2543.2,3.53884]
[1729742591883,3.53809,2543.8,2543.2,3.53884]
[1729742592076,3.53801,2543.8,2543.3,0.8018]
[1729742592308,7.07584,2543.9,2543.4,0.434064]
[1729742592515,0.04831974,2544.0,2543.5,4.34022]
[1729742592516,3.58604974,2544.0,2543.5,4.34022]
[1729742592713,0.04831974,2544.0,2543.5,7.87857]
[1729742593019,3.58604974,2544.0,2543.6,0.8312634]
[1729742593225,0.04831974,2544.0,2543.6,4.3695134]
[1729742593383,0.04831974,2544.0,2543.7,0.07861731]
[1729742593588,0.04831974,2544.0,2543.7,3.53814]
[1729742593908,0.04831974,2544.0,2543.6,4.3695334]
[1729742594106,0.04831974,2544.0,2543.7,4.40910234]
[1729742594422,0.04831974,2544.0,2543.8,0.8018]
[1729742595800,3.58607974,2544.0,2543.8,0.8018]
[1729742595994,0.04831974,2544.0,2543.8,0.8018]
[1729742596206,3.5376,2544.1,2543.8,0.8018]
[1729742596588,3.5376,2544.1,2543.8,1.235806]
[1729742597102,16.21745,2544.2,2543.8,1.235806]
[1729742597300,12.68,2544.2,2543.8,1.235806]
[1729742597509,12.68,2544.3,2543.9,3.53779]
[1729742597726,12.68,2544.3,2544.0,0.8018]
[1729742597895,12.68,2544.3,2544.1,0.433959]
[1729742598094,12.68,2544.5,2544.1,0.433959]
[1729742598295,3.53741,2544.3,2543.8,1.235806]
[1729742598523,7.07482,2544.3,2543.8,1.235806]
[1729742598724,3.53741,2544.3,2543.8,1.235806]
[1729742598931,7.0748,2544.3,2543.8,1.235806]
[1729742599222,3.53739,2544.3,2543.9,0.8018]
[1729742599390,3.53739,2544.3,2543.9,1.6329806]
[1729742599827,7.07479,2544.3,2543.9,1.6329806]
[1729742600124,3.53739,2544.3,2543.9,1.6329806]
[1729742601094,16.21713,2544.5,2543.9,5.1708406]
[1729742601295,16.21713,2544.5,2543.9,8.7085106]
[1729742601495,16.21712,2544.5,2544.0,0.91425166]
[1729742601891,16.21712,2544.5,2544.1,0.06518404]
[1729742602297,19.75425,2544.5,2544.1,0.06518404]
[1729742602632,12.68,2544.4,2544.2,0.06518404]
[1729742602796,12.68,2544.4,2543.9,4.33955]
[1729742603132,12.68,2544.4,2544.3,0.06446004]
[1729742603297,12.68,2544.4,2544.0,3.971605]
[1729742603497,12.68,2544.4,2544.3,0.06446004]
[1729742603693,12.68,2544.4,2544.0,3.971605]
[1729742603900,12.68,2544.4,2544.3,0.06383318]
[1729742604096,12.68,2544.4,2544.0,3.971605]
[1729742604303,12.68,2544.4,2544.3,0.06383318]
[1729742604526,12.68,2544.4,2544.1,4.0149305]
[1729742604836,12.68,2544.5,2544.1,0.4773405]
[1729742604998,12.68,2544.5,2544.2,3.60127318]
[1729742605200,12.68,2544.5,2544.2,0.06383318]
[1729742605497,12.68,2544.4,2544.2,0.47171555]
[1729742605902,12.68,2544.5,2544.3,0.7601]
[1729742606302,12.68,2544.6,2544.3,0.7601]
[1729742606639,12.68,2544.6,2544.4,0.06383318]
[1729742607523,12.68,2544.6,2544.4,0.54075173]
[1729742607710,12.68,2544.6,2544.4,4.07790173]
[1729742608530,12.68,2544.6,2544.4,0.54075173]
[1729742608699,12.68,2544.6,2544.4,4.07790173]
[1729742608900,12.68,2544.6,2544.4,0.54075173]
[1729742609131,12.67842764,2544.6,2544.4,4.07792173]
[1729742609307,12.67842764,2544.6,2544.5,0.48380217]
[1729742609636,12.67842764,2544.6,2544.5,0.54743236]
[1729742614351,12.67842764,2544.6,2544.5,0.06363019]
[1729742614854,12.67842764,2544.6,2544.4,1.29525454]
[1729742615053,12.67842764,2544.6,2544.5,0.06363019]
[1729742615492,12.67842764,2544.6,2544.3,5.59266454]
[1729742615759,0.05272027,2544.7,2544.5,0.06363019]
[1729742616052,12.68,2544.6,2544.3,5.59266454]
[1729742616264,12.68,2544.6,2544.4,0.91300245]
[1729742616440,12.68,2544.6,2544.4,2.20825699]
[1729742616619,12.68,2544.6,2544.4,0.91300245]
[1729742616819,12.68,2544.6,2544.5,0.06327719]
[1729742619287,16.2169,2544.6,2544.5,0.06327719]
[1729742619478,20.45201802,2544.6,2544.5,0.06327719]
[1729742619666,3.53737,2544.3,2543.9,0.762]
[1729742619847,3.53737,2544.3,2544.0,0.06327719]
[1729742620171,3.53747,2544.2,2544.0,0.06327719]
[1729742620751,7.07479,2544.3,2544.0,0.06327719]
[1729742621762,3.53747,2544.2,2544.0,0.06327719]
[1729742621959,3.53737,2544.3,2544.0,0.27533036]
[1729742623283,16.21737,2544.3,2544.0,0.27533036]
[1729742623897,3.53746,2544.2,2544.0,0.27533036]
[1729742624198,16.21737,2544.3,2544.0,0.27533036]
[1729742624409,12.68,2544.2,2544.0,0.27533036]
[1729742624775,16.21737,2544.3,2544.0,0.27533036]
[1729742629300,7.0743,2544.5,2544.0,0.27533036]
[1729742629511,3.53724,2544.4,2544.0,0.27533036]
[1729742631409,3.53714,2544.5,2544.1,4.83283454]
[1729742631741,3.53714,2544.5,2544.2,0.92798922]
[1729742635830,3.53712,2544.5,2544.2,0.92798922]
[1729742636986,7.07424,2544.5,2544.2,0.92798922]
[1729742637457,3.53712,2544.5,2544.2,0.92798922]
[1729742637769,3.53718,2544.4,2544.2,0.06340073]
[1729742637931,3.53718,2544.4,2544.0,1.50730771]
[1729742638128,7.07426,2544.5,2544.3,0.06340073]
[1729742638332,3.53717,2544.4,2544.3,0.06340073]
[1729742638555,3.53717,2544.4,2544.0,5.04497771]
[1729742638859,3.53717,2544.4,2544.3,0.06340073]
[1729742639751,3.53717,2544.4,2544.1,0.58069777]
[1729742639927,3.53717,2544.4,2544.3,0.06331249]
[1729742640127,3.53717,2544.4,2544.1,0.58069777]
[1729742640664,3.53745,2544.2,2544.1,0.58069777]
[1729742640965,3.53745,2544.2,2544.0,0.21205317]
[1729742642369,3.53745,2544.2,2543.9,0.762]
[1729742644168,3.53745,2544.2,2543.9,2.05725454]
[1729742646872,3.53745,2544.2,2544.0,0.06331249]
[1729742648478,7.07448,2544.4,2544.0,0.06331249]
[1729742648684,3.53717,2544.4,2544.0,1.35856703]
[1729742648970,7.07442,2544.4,2544.0,2.27821073]
[1729742649166,7.07445,2544.4,2544.0,2.27821073]
[1729742649406,3.53717,2544.4,2544.0,2.27821073]
[1729742649677,3.53717,2544.4,2544.0,0.98295619]
[1729742649857,3.53733,2544.3,2544.0,0.98295619]
[1729742650182,3.53733,2544.3,2544.0,2.27821073]
[1729742650782,3.53733,2544.3,2544.0,0.98295619]
[1729742651445,3.53733,2544.3,2544.0,2.27821073]
[1729742651646,3.537,2544.6,2544.0,2.27821073]
[1729742651853,3.53718,2544.4,2544.0,5.81593073]
[1729742652159,3.53718,2544.4,2544.1,0.58159307]
[1729742652772,3.53718,2544.4,2544.2,0.06331249]
[1729742653383,3.53718,2544.4,2544.0,2.21489824]
[1729742653566,3.53718,2544.4,2544.3,0.06331249]
[1729742653761,3.537,2544.6,2544.2,1.29525454]
[1729742654085,3.53699,2544.6,2544.3,0.06331249]
[1729742654288,3.53699,2544.6,2544.2,1.51674436]
[1729742654482,3.53699,2544.6,2544.3,0.06329483]
[1729742654671,3.53699,2544.6,2544.2,1.51674436]
[1729742654875,3.53699,2544.6,2544.3,0.06329483]
[1729742655078,3.53699,2544.6,2544.3,0.51175592]
[1729742655395,3.53697,2544.6,2544.4,0.06329483]
[1729742657268,0.05272027,2544.7,2544.4,0.06329483]
[1729742658292,0.05272027,2544.7,2544.4,1.35854937]
[1729742658587,0.05272027,2544.7,2544.4,0.06329483]
[1729742658888,0.05272027,2544.7,2544.5,1.29525454]
[1729742659259,0.05272027,2544.7,2544.6,0.06329483]
[1729742659466,0.05272027,2544.7,2544.4,1.7286466]
[1729742659684,0.05272027,2544.7,2544.5,0.06329483]
[1729742660582,0.05272027,2544.7,2544.5,1.35854937]
[1729742660785,0.05272027,2544.7,2544.6,0.53290814]
[1729742661396,0.05272027,2544.7,2544.6,0.59620297]
[1729742662577,0.05272027,2544.7,2544.6,1.89145751]
[1729742662889,0.05272027,2544.7,2544.6,0.06329483]
[1729742663303,0.05272027,2544.7,2544.6,1.35854937]
[1729742663872,0.05272027,2544.7,2544.6,0.06329483]
[1729742664093,0.134552,2545.0,2544.6,4.97402908]
[1729742664407,3.670892,2545.0,2544.7,1.29525454]
[1729742664802,0.134552,2545.0,2544.8,0.06263311]
[1729742665202,0.134552,2545.0,2544.8,0.48947577]
[1729742665379,0.134552,2545.0,2544.9,0.06263311]
[1729742669212,0.134552,2545.0,2544.9,4.89436765]
[1729742670914,0.134552,2545.0,2544.9,1.35788765]
[1729742671878,0.134552,2545.0,2544.9,0.06263311]
[1729742672081,0.134552,2545.0,2544.9,0.60102445]
[1729742672320,0.134552,2545.0,2544.9,1.89627899]
[1729742674302,0.134552,2545.0,2544.9,0.60102445]
[1729742678817,0.134552,2545.0,2544.9,1.89627899]
[1729742679130,0.134552,2545.0,2544.9,0.60102445]
[1729742692538,0.134552,2545.0,2544.9,1.89627899]
[1729742694102,0.134552,2545.0,2544.9,4.13750445]
[1729742694512,0.134552,2545.0,2544.9,0.60102445]
[1729742694818,0.134552,2545.0,2544.9,1.89627899]
[1729742698053,0.134552,2545.0,2544.9,0.60102445]
[1729742699222,0.134552,2545.0,2544.9,1.89627899]
[1729742699950,0.134552,2545.0,2544.9,0.60102445]
[1729742700119,0.134552,2545.0,2544.9,5.43275899]
[1729742701745,0.134552,2545.0,2544.9,6.26005899]
[1729742705353,0.134552,2545.0,2544.9,6.33863214]
[1729742708451,0.134552,2545.0,2544.9,6.81005899]
[1729742713268,0.134552,2545.0,2544.9,9.88862505]
[1729742713433,0.134552,2545.0,2544.9,9.81005899]
[1729742724601,0.134552,2545.0,2544.9,9.98174014]
[1729742731574,0.134552,2545.0,2544.9,10.09890403]
[1729742735207,2e-06,2545.0,2544.9,15.09890403]
[1729742739621,2e-06,2545.0,2544.9,17.21890403]
[1729742742018,2e-06,2545.0,2544.9,15.09890403]
[1729742745119,2e-06,2545.0,2544.9,16.39415857]
[1729742745921,2e-06,2545.0,2544.9,18.51415857]
[1729742746214,2e-06,2545.0,2544.9,17.21890403]
[1729742746921,0.80563097,2545.8,2545.7,3.53537]
[1729742747221,0.80563097,2545.8,2545.7,5.71814616]
[1729742749720,0.80563097,2545.8,2545.7,5.79669689]
[1729742749928,4.139,2547.9,2545.7,5.79669689]
[1729742749929,3.53352,2547.1,2546.4,4.82965454]
[1729742750219,3.53352,2547.1,2546.6,1.29525454]
[1729742750423,4.82877454,2547.1,2546.5,5.49174986]
[1729742750626,1.29525454,2547.0,2546.5,4.01716545]
[1729742750786,8.36229454,2547.1,2546.6,0.17932987]
[1729742750982,3.53358,2547.0,2546.6,0.17932987]
[1729742751227,8.36229454,2547.1,2546.6,0.17932987]
[1729742752735,3.53358,2547.0,2546.6,0.17932987]
[1729742752900,0.8272,2547.0,2546.6,0.17932987]
[1729742753720,0.8272,2546.9,2546.6,0.17932987]
[1729742754895,0.8272,2546.9,2546.6,3.71341987]
[1729742755398,0.8272,2546.9,2546.6,0.17932987]